Cogmind - Beta 16.1 @@@ ROGUE MODE // 2026.03.01 @ 16:09:58 Player: Krysmphoenix Result: Destroyed by D-53 Grenadier with Mini Grenade Launcher Performance ------------- Evolutions (0) 0 Regions Visited (2) 400 Robots Destroyed (17) 85 Value Destroyed (359) 359 Prototype IDs (0) 0 Alien Tech Used (0) 0 Bonus (0) 0 TOTAL SCORE: 844 Bonus ------- None Cogmind --------- Core Integrity 0/250 Matter 204/300 Energy 76/100 System Corruption 1% Temperature Cool (4) Movement Flying (37) Location -10/Mines Parts ------- > --- POWER (1) -------- (None) > --- PROPULSION (2) --- Flight Unit Flight Unit > --- UTILITY (2) ------ Heat Sink Structural Scanner > --- WEAPON (2) ------- (None) > --- INVENTORY (5) ---- Flight Unit Flight Unit Datajack Peak State ------------ > --- POWER ------------ Ion Engine > --- PROPULSION ------- Improved Hover Unit Improved Hover Unit > --- UTILITY ---------- Small Storage Unit Sensor Array > --- WEAPON ----------- EM Pulse Gun EM Pulse Gun > --- INVENTORY -------- Light Ion Engine Heat Sink ECM Suite Light Assault Rifle Light Assault Rifle Grenade Launcher Mining Laser [Rating: 9] Favorites ----------- Power Ion Engine Engine Ion Engine Propulsion Wheel Wheel Wheel Hover Unit Improved Hover Unit Flight Unit Flight Unit Utility Heat Sink Device Heat Sink Storage Small Storage Unit Weapon EM Pulse Gun Energy Gun EM Pulse Gun Ballistic Gun Light Assault Rifle Launcher Grenade Launcher Special Melee Weapon Datajack Build | -11 -10 -10 ------- Run | Yrd Mat Min Slots Evolved . | . . . Power . | . . . Propulsion . | . . . Utility . | . . . Weapon . | . . . Parts Attached 23 | 6 13 4 Power 3 | 1 1 1 Engine 3 | 1 1 1 Core . | . . . Reactor . | . . . Propulsion 9 | 2 4 3 Treads . | . . . Leg . | . . . Wheel 2 | 2 . . Hover 2 | . 2 . Flight 5 | . 2 3 Utility 5 | 1 4 . Device 4 | . 4 . Storage 1 | 1 . . Processor . | . . . Hackware . | . . . Protection . | . . . Artifact . | . . . Weapon 6 | 2 4 . Energy Gun 2 | . 2 . Energy Cannon . | . . . Ballistic Gun 2 | 2 . . Ballistic Cannon . | . . . Launcher 1 | . 1 . Special Weapon . | . . . Impact Weapon . | . . . Slashing Weapon . | . . . Piercing Weapon . | . . . Special Melee Weapon 1 | . 1 . Unidentified Prototypes . | . . . Parts Lost 6 | . 1 5 Power 1 | . . 1 Propulsion 2 | . . 2 Utility . | . . . Weapon 3 | . 1 2 Highest Loss Streak 3 | . 1 3 To Critical Strikes . | . . . Average Backups 4 | 1 4 4 Power . | . . . Propulsion . | . . 2 Utility . | . . . Weapon 2 | 1 3 . Tool/Special . | . . . Unused Backups 8 | . 4 4 Power 1 | . 1 . Propulsion 4 | . . 4 Utility 1 | . 1 . Weapon 1 | . 1 . Tool/Special 1 | . 1 . Average Slot Usage (%) 97 | . 98 90 Engine 13 | . 14 12 Wheel 10 | . 12 . Hover 9 | . 11 . Flight 8 | . 3 28 Device 22 | . 20 28 Storage 5 | . 6 . Energy Gun 14 | . 17 . Ballistic Gun 9 | . 8 11 Launcher 1 | . 1 4 Special Melee Weapon 1 | . . 3 Peak Build Rating 9 | 6 9 7 Average Rating 7 | 5 7 6 On Entrance 4 | . 6 7 Avg Prop Armor Cover (%) . | . . . Naked Turns . | . . . Heaviest Build 15 | 12 15 9 Greatest Support 20 | 20 20 8 Greatest Overweight (x) 2 | . 2 1 Average Overweight (x) . | . . . Largest Inventory Capacity 8 | 8 8 5 Average Capacity 6 | 7 6 5 Most Carried 8 | 4 8 5 Average Carried 4 | 1 4 4 Final Capacity 8 | 8 5 5 Final Carried 5 | 3 5 3 Class Distribution -------------------- 100% | Mutant Dominant Class ---------------- Mutant | -10/Materials Mutant | -10/Mines Resources | -11 -10 -10 ----------- Run | Yrd Mat Min Matter Collected 534 | 294 143 97 Remotely . | . . . Salvage Created 492 | 152 321 19 Parts 39 | 14 19 6 Haulers Intercepted . | . . . Recyclers Shooed . | . . . Parts Field Recycled . | . . . Retrieved Matter . | . . . Parts Self-Destructed . | . . . Prevented . | . . . Parts Restored . | . . . Kills | -11 -10 -10 ------- Run | Yrd Mat Min Combat Hostiles Destroyed 12 | . 9 3 Guns 5 | . 5 . AOE 7 | . 4 3 Classes Destroyed 5 | 3 2 . Worker 2 | 2 . . Tunneler 2 | 2 . . Recycler 1 | 1 . . Swarmer 5 | . 2 3 Grunt 7 | . 7 . Best Kill Streak 3 | 2 2 3 Combat Bots Only 3 | . 2 3 Max Kills in Single Turn 3 | 1 2 3 Gunslinging . | . . . Exploded 3 | . 2 3 Melee . | . . . Uniques/NPCs Destroyed . | . . . Combat | -11 -10 -10 -------- Run | Yrd Mat Min Hostile Shots Fired 58 | . 40 18 Missed 16 | . 13 3 Hits 42 | . 27 15 Projectile 42 | . 27 15 AOE 8 | . . 8 Damage Taken 724 | . 329 395 Core 263 | . 111 152 Absorbed by Shields . | . . . Core Remaining (%) 100 | 100 . . Volleys Fired 54 | 17 26 11 Largest 2 | 2 2 2 Hottest 80 | 40 80 50 Shots Fired 98 | 34 52 12 Gun 91 | 34 48 9 Cannon . | . . . Launcher 7 | . 4 3 Special . | . . . Kinetic 66 | 34 23 9 Thermal . | . . . Explosive 7 | . 4 3 Electromagnetic 25 | . 25 . Robot Hit Streak 10 | 5 10 5 Robot Miss Streak 3 | 3 2 2 Penetration Max . | . . . Secondary Targets . | . . . Shots Hit Robots 62 | 20 35 7 Core Hits 34 | 9 19 6 Critical Kills . | . . . Critical Parts Destroyed 1 | 1 . . Critical Strikes 1 | 1 . . Destroy 1 | 1 . . Melee Attacks . | . . . Impact . | . . . Slashing . | . . . Piercing . | . . . Sneak Attacks . | . . . Combat Hostiles . | . . . Follow-up Attacks . | . . . Damage Inflicted 1063 | 165 679 219 Guns 523 | 165 328 30 Cannons . | . . . Explosions 540 | . 351 189 Melee . | . . . Ramming . | . . . Kinetic 315 | 165 120 30 Thermal 135 | . 135 . Explosive 405 | . 216 189 Electromagnetic 208 | . 208 . Impact . | . . . Slashing . | . . . Piercing . | . . . Highest Corruption 1 | . 1 1 Average Corruption 1 | . 1 1 Corruption Purged . | . . . Corruption Blocked . | . . . Effects 5 | . 3 2 Message Errors 1 | . . 1 Matter Fused 2 | . 2 . Energy Discharges 1 | . 1 . Data Loss (minor) 1 | . . 1 Overload Shots . | . . . Overflow Damage . | . . . Projectiles . | . . . Explosions . | . . . Melee . | . . . Knockbacks . | . . . Impact . | . . . Kinetic . | . . . Secondary . | . . . Self-Inflicted Damage . | . . . Shots . | . . . Rammed . | . . . Targets Rammed . | . . . Kicked . | . . . Crushed . | . . . Highest Temperature 108 | . 108 . Average Temperature 34 | . 34 . Received Heat Transfer 129 | . 129 . Siege Activations . | . . . Martial Activations . | . . . Shielding Activations . | . . . Robots Disrupted . | . . . Combat Hostiles . | . . . Robots Corrupted . | . . . Combat Hostiles . | . . . Parts Fried . | . . . Impact Corruptions . | . . . Robots Melted . | . . . Combat Hostiles . | . . . Parts Melted . | . . . Heat Transferred 100 | . 100 . Parts Sabotaged . | . . . Parts Stolen . | . . . Parts Stripped . | . . . Power Chain Reactions 2 | . 2 . Alert | -11 -10 -10 ------- Run | Yrd Mat Min Maximum Alert Level . | . . . Low Security (%) 100 | 100 100 100 Level 1 . | . . . Level 2 . | . . . Level 3 . | . . . Level 4 . | . . . Level 5 . | . . . High Security . | . . . Max Security . | . . . Peak Influence 151 | 5 151 119 Initial 49 | . 3 49 Average 52 | 1 55 99 Influence Increases 457 | 25 319 113 Destroy 0b10 Robot/C 240 | . 180 60 Destroy 0b10 Robot/NC 25 | 25 . . Destroy Leader 60 | . 50 10 Successful Hack 27 | . 22 5 Disable Machine 15 | . 15 . Destroy Structure 45 | . 22 23 Partial Spotted 15 | . 15 . Lose Combat Pursuer 30 | . 15 15 Influence Decreases 395 | 20 197 178 Entered New Map 80 | . 2 78 Time Decay 255 | 20 185 50 Lost Part 60 | . 10 50 Squads Dispatched 1 | . 1 . Investigation . | . . . Extermination . | . . . Reinforcement 1 | . 1 . Assault . | . . . Garrison . | . . . Intercept . | . . . Searches Triggered . | . . . Construction Impeded . | . . . Haulers Reinforced . | . . . Active Scanning Responses . | . . . Cargo Convoy Interrupts . | . . . Stealth | -11 -10 -10 --------- Run | Yrd Mat Min Distress Signals . | . . . Communications Jammed . | . . . Distress Signals . | . . . Times Spotted 25 | . 17 8 Peak Tracking Total 4 | . 4 3 Tactical Retreats 2 | . 1 1 Traps | -11 -10 -10 ------- Run | Yrd Mat Min Traps Triggered 1 | . 1 . Indirectly . | . . . Trap Hack Attempts . | . . . Triggered . | . . . Disarmed . | . . . Reprogrammed . | . . . Reused . | . . . Traps Extracted . | . . . Installed . | . . . Triggered . | . . . Machines | -11 -10 -10 ---------- Run | Yrd Mat Min Machines Disabled 1 | . 1 . Max in Single Turn 1 | . 1 . Machines Repaired . | . . . Machines Dismantled . | . . . Machines Sabotaged . | . . . Overloaded Fab Kills . | . . . Hacking | -11 -10 -10 --------- Run | Yrd Mat Min Machines Accessed 7 | . 6 1 Terminals 7 | . 6 1 Fabricators . | . . . Repair Stations . | . . . Recycling Units . | . . . Scanalyzers . | . . . Garrison Access . | . . . Total Hacks 26 | . 24 2 Successful 15 | . 13 2 Failed 11 | . 11 . Catastrophic . | . . . Database Lockouts . | . . . Manual 15 | . 13 2 Terminals 26 | . 24 2 Fabricators . | . . . Repair Stations . | . . . Recycling Units . | . . . Scanalyzers . | . . . Garrison Access . | . . . Terminal Hacks 6 | . 6 . Record 5 | . 5 . Branch Access Points 1 | . 1 . Fabricator Hacks . | . . . Repair Station Hacks . | . . . Recycling Unit Hacks . | . . . Scanalyzer . | . . . Garrison Access Hacks . | . . . Unauthorized Hacks 9 | . 7 2 Terminals 9 | . 7 2 Assimilate 4 | . 3 1 Botnet 5 | . 4 1 Fabricators . | . . . Repair Stations . | . . . Recycling Units . | . . . Scanalyzers . | . . . Garrison Access . | . . . Data Cores Recovered . | . . . Used . | . . . Hacking Detections 6 | . 6 . Full Trace Events . | . . . Feedback Events . | . . . Feedback Blocked . | . . . Robot Schematics Acquired . | . . . Robots Built . | . . . Authchips . | . . . Time . | . . . Total Robot Build Rating . | . . . Part Schematics Acquired . | . . . Parts Built . | . . . Authchips . | . . . Time . | . . . Total Part Build Rating . | . . . Part Studies Acquired . | . . . Parts Repaired . | . . . Time . | . . . Parts Recycled . | . . . Recycled Matter . | . . . Retrieved Matter . | . . . Retrieved Components . | . . . Parts Scanalyzed . | . . . Part Schematics Acquired . | . . . Parts Damaged . | . . . Bothacking | -11 -10 -10 ------------ Run | Yrd Mat Min Used RIF Installer . | . . . Robots Hacked . | . . . Non-combat . | . . . Combat . | . . . Robot Hacks Applied . | . . . Relay Couplers Released . | . . . Fabnet Peak Effective % . | . . . Robots Rewired . | . . . Allies Hacked . | . . . Hacks Repelled . | . . . Allies | -11 -10 -10 -------- Run | Yrd Mat Min Total Allies . | . . . Largest Group . | . . . Highest-Rated Group . | . . . Highest-Rated Ally . | . . . Total Orders . | . . . Ally Attacks . | . . . Total Damage . | . . . Kills . | . . . Allies Corrupted . | . . . Allies Melted . | . . . Intel | -11 -10 -10 ------- Run | Yrd Mat Min Active Infowar (turns) 574 | . 464 110 Sensors 328 | . 328 . Structural 246 | . 136 110 Robot Analysis Total . | . . . Derelict Logs Recovered 1 | . . 1 Drone Launches . | . . . Drone Recoveries . | . . . Exploration | -11 -10 -10 ------------- Run | Yrd Mat Min Turns Passed 715 | 126 479 110 Spaces Moved 822 | 83 572 167 Core 2 | 2 . . Treads . | . . . Legs . | . . . Wheels 302 | 81 221 . Hover 203 | . 203 . Flight 315 | . 148 167 Fastest Speed 37 | 50 37 37 Average Speed 58 | 79 60 40 Slowest Speed 180 | 80 180 117 Overloaded Moves . | . . . Propulsion Burnouts . | . . . Robots Hopped . | . . . Potential Cave-ins . | . . . Cave-ins Triggered . | . . . Exploration Rate (%) 39 | 3 79 36 Regions Visited 2 Branch Regions 1 Pre-discovered Areas . | . . . Known Exits Taken 1 | . 1 . Unknown Exits Taken 1 | 1 . . Scrap Searched 2 | . . 2 Spaces Dug . | . . . Terrain Destroyed 52 | . 18 34 Melee . | . . . Projectile . | . . . AOE 52 | . 18 34 Terrain Rammed . | . . . Walls Destroyed . | . . . Machines Disabled . | . . . Actions | -11 -10 -10 --------- Run | Yrd Mat Min Total 970 | 115 656 199 Wait 15 | 1 13 1 Move 820 | 82 571 167 Hop . | . . . Pick Up 31 | 9 17 5 Fast Attach . | . . . Attach 14 | 6 4 4 Detach 1 | . . 1 Swap 17 | . 12 5 Drop 18 | . 13 5 Fire 54 | 17 26 11 Melee . | . . . Ram . | . . . Kick . | . . . Crush . | . . . Escape Stasis . | . . . Rewire . | . . . Trap . | . . . Miscellaneous . | . . . Route ------- -11/Scrapyard -10/Materials (discovered 5 exits: [*Mat x2] / *Min x2 / [*Sub]) -10/Mines History --------- Turn | Location | Event 19 | -11/Scrapyard | Discovered new exit (range 15) 127 | -11/Scrapyard | Entered Materials 293 | -10/Materials | Discovered new exit (range 11) 314 | -10/Materials | Build established: Mutant 360 | -10/Materials | Identified exit to Mines 463 | -10/Materials | Discovered new exit (range 5) 591 | -10/Materials | Discovered new exit (range 8) 606 | -10/Materials | Entered Mines 607 | -10/Mines | Assembled infested the area 611 | -10/Mines | Core integrity fell below 50% 644 | -10/Mines | Learned Materials security intel 715 | -10/Mines | Core integrity fell below 20% 716 | -10/Mines | Destroyed by D-53 Grenadier with Mini Grenade Launcher Last Messages --------------- 00644_ Found Huge Storage Unit. 00644_ Found Lgt. Treads. 00644_ Found 58 Matter. 00644_ Acquired 52 matter. 00649_ K-01 Serf collects debris. 00651_ Dropped Lgt. Ion Engine. 00652_ K-01 Serf collects debris. 00656_ C-45 Heavy ARC bursts open, deploying its payload. 00656_ D-53 Grenadier unfolds itself. 00660_ Grenade Launcher destroyed. 00669_ 1JSYIWCK5&NFEYGHCWKZTXY 00670_ U-05 Engineer lays Concrete. 00673_ K-01 Serf collects debris. 00673_ U-05 Engineer builds a Wall. 00673_ K-01 Serf collects debris. 00702_ Lgt. Ion Engine destroyed. 00708_ Lgt. Assault Rifle destroyed. 00710_ Flight Unit destroyed. 00711_ D-53 Grenadier destroyed. Map ----- +----------------------------------------------------+ | | | | | | | | | | | | | ?????????????????????????????????????????????????? | | ?????????????????????????????????????????????????? | | ?????????????????????????????????????????????????? | | ?????????????????????????????????????????????????? | | ?????????????????????????????????????????????????? | | ?????????????????????????????????????????????????? | | ?????????????????????????????????????????????????? | | ????????????????????##### ???????????????????????? | | ????????????????????##### ???????????????????????? | | ????????????????????## ???????????????????????? | | ???????????????????### # ???????????????????????? | | ???????###????????#### # ???????????????????????? | | ??????? ######????### # ??????????????????????? | | ??????? #######??## ####????????#### ??????? | | ?????? ####### #########?######## ????? | | ?????? ###### ############ ### ????# | | ??????? ##### #### ##### ##????# | | ?????? #### ### #### ## ### | | ???????? #### ### ####### | | ???????????## ## @ #### # ## | | ???????????### k #### # | | ????????????## k ######## # | | ????????????### d ######### | | ????????????#### ###### | | ?????????????### ### | | ?????????????### ### | | ?????????????## #### ##### | | ?????????????## #### ####### # # | | ?????????????## #### #####?### ##### | | ?????????????### ##### % ####???## #### " | | ?????????????#### #### ! ##???### #### " | | ????????????##### ##?? =[*##??### #### " | | ????????????### # ##?# # !##??## ##### | | ????????????## ###?## # # =##### ###### | | ????????????## ######### ##### ###?# | | ?????## ########## ##??? | | ?????## #### #### # # ###### ## ###?? ## | | ?????########## #### = ### ## ######?? ### | | ???????????#### #### %* ## #### ???###? | | ?????????????## #### = ######?????????????? | | ????????????? ##### ######?????????????? | | ?????????????# ## ##?????????????????? | | ????????????## ### [= ##?????????????????? | | ????????????# % #####T########?????????????????? | +----------------------------------------------------+ Best States ------------- Heat Dissipation 35 Energy Generation 10 Energy Capacity 250 Matter Stores 300 Matter Capacity 300 Sight Range 16 Robot Scan Range 14 Terrain Scan Density 10 Evasion (%) 62 Item Schematics ----------------- None Robot Schematics ------------------ None Fabricated ------------ Nothing Repaired ---------- Nothing Studied --------- None Alien Tech Used ----------------- None Achievements -------------- None Challenges ------------ None Game ------ Seed ReflectiveMassTearclaws Manual? 0 Play Time 00:20:41 Cumulative 13.0 hours Start 2026.03.01 @ 15:52:44 End 2026.03.01 @ 16:09:58 Sessions 1 Manual Loads 0 Difficulty Rogue Special Mode None Game No. 23 Rogue 20 Adventurer 3 Explorer 0 Win Type - Total 1 Types 1/0/0/0/0/0/0/0/0/0 Lore% 11 Gallery% 16 Achievement% 18 Wizard Run 0 Options --------- Layout 1 ASCII 0 Keyboard 0 Movement Numpad Keybinds 0 Fullscreen 2 Font 24/Proggy Map View 50x35 Zoom Use 0% Tactical HUD 1 Map Filters NONE Filters NONE Steam 1 RUN: 0a93ddfe-bd8a-4488-a785-177787a88b6f